[Event "Live Chess"]
[Site "Chess.com"]
[Date "2024.06.01"]
[Round "-"]
[White "YrrriKharkiv"]
[Black "DarranAS"]
[Result "1-0"]
[WhiteElo "2096"]
[BlackElo "1580"]
[TimeControl "300"]
[EndTime "9:18:23 PDT"]
[Termination "YrrriKharkiv won by resignation"]

1. d4 {[%clk 0:04:50.5]} 1... d5 {[%clk 0:04:58.2]} 2. Nc3 {[%clk 0:04:48.5]}
2... c6 {[%clk 0:04:51]} 3. Bf4 {[%clk 0:04:47.5]} 3... Nf6 {[%clk 0:04:47.8]}
4. e3 {[%clk 0:04:46.7]} 4... g6 {[%clk 0:04:44.6]} 5. h4 {[%clk 0:04:43.9]}
5... h5 {[%clk 0:04:42.2]} 6. Nf3 {[%clk 0:04:42.2]} 6... Bg4 {[%clk 0:04:37.8]}
7. Be2 {[%clk 0:04:39.4]} 7... Nbd7 {[%clk 0:04:31.6]} 8. a3 {[%clk 0:04:33.6]}
8... a5 {[%clk 0:04:12.7]} 9. Rb1 {[%clk 0:04:28.1]} 9... e6 {[%clk 0:04:09]}
10. Ne5 {[%clk 0:04:21.7]} 10... Nxe5 {[%clk 0:04:04.3]} 11. Bxe5 {[%clk
0:04:20.2]} 11... Bxe2 {[%clk 0:04:02.1]} 12. Qxe2 {[%clk 0:04:18.2]} 12... Bg7
{[%clk 0:03:57]} 13. O-O {[%clk 0:04:07.1]} 13... O-O {[%clk 0:03:55.2]} 14. b4
{[%clk 0:04:04.6]} 14... axb4 {[%clk 0:03:49.5]} 15. axb4 {[%clk 0:04:03.1]}
15... b5 {[%clk 0:03:43.9]} 16. e4 {[%clk 0:03:50.8]} 16... Re8 {[%clk
0:03:35.4]} 17. g3 {[%clk 0:03:43.9]} 17... Ng4 {[%clk 0:03:28.6]} 18. Bxg7
{[%clk 0:03:40.4]} 18... Kxg7 {[%clk 0:03:25.5]} 19. f3 {[%clk 0:03:29.1]} 19...
Nf6 {[%clk 0:03:09]} 20. Rfd1 {[%clk 0:03:24.4]} 20... Qc7 {[%clk 0:02:53.5]}
21. Kg2 {[%clk 0:03:20]} 21... Ra3 {[%clk 0:02:46.6]} 22. Rd3 {[%clk 0:03:13]}
22... Qa7 {[%clk 0:02:27]} 23. Nd1 {[%clk 0:02:21.2]} 23... Nd7 {[%clk
0:02:06.1]} 24. exd5 {[%clk 0:01:52.7]} 24... cxd5 {[%clk 0:02:00.8]} 25. Rxa3
{[%clk 0:01:46.4]} 25... Qxa3 {[%clk 0:01:56.9]} 26. Qxb5 {[%clk 0:01:38.4]}
26... Qa7 {[%clk 0:01:34.6]} 27. Qd3 {[%clk 0:01:24]} 27... Rc8 {[%clk
0:01:30.8]} 28. b5 {[%clk 0:01:15.8]} 28... Nb6 {[%clk 0:01:28.1]} 29. Ne3
{[%clk 0:01:11.4]} 29... Qa5 {[%clk 0:01:20]} 30. Kf2 {[%clk 0:01:01.3]} 30...
Rc3 {[%clk 0:01:16]} 31. Qd2 {[%clk 0:00:58.2]} 31... Qa2 {[%clk 0:01:04.5]} 32.
Qxc3 {[%clk 0:00:55.5]} 32... Nc4 {[%clk 0:00:59]} 33. Nxc4 {[%clk 0:00:53.9]}
33... dxc4 {[%clk 0:00:57.2]} 34. Rb2 {[%clk 0:00:51.5]} 34... Qa1 {[%clk
0:00:53.9]} 35. Kg2 {[%clk 0:00:45.1]} 35... Qd1 {[%clk 0:00:50.8]} 36. Qxc4
{[%clk 0:00:37.8]} 36... Qd2+ {[%clk 0:00:49.9]} 37. Kh3 {[%clk 0:00:36.3]}
37... Qf2 {[%clk 0:00:44.5]} 38. Rb1 {[%clk 0:00:31.8]} 38... Qxf3 {[%clk
0:00:43]} 39. Qd3 {[%clk 0:00:29.6]} 39... Qg4+ {[%clk 0:00:41.9]} 40. Kg2
{[%clk 0:00:29]} 40... f5 {[%clk 0:00:37.6]} 41. Qe3 {[%clk 0:00:25.6]} 41...
Kf7 {[%clk 0:00:34.3]} 42. b6 {[%clk 0:00:24.1]} 1-0

[Event "Live Chess"]
[Site "Chess.com"]
[Date "2024.06.01"]
[Round "-"]
[White "Kyrylo7770"]
[Black "jimwad"]
[Result "0-1"]
[WhiteElo "1699"]
[BlackElo "1223"]
[TimeControl "300"]
[EndTime "9:18:25 PDT"]
[Termination "jimwad won by checkmate"]

1. d4 {[%clk 0:04:55]} 1... d5 {[%clk 0:04:58.6]} 2. Nf3 {[%clk 0:04:54.3]} 2...
Nf6 {[%clk 0:04:56.7]} 3. Bf4 {[%clk 0:04:53.4]} 3... c6 {[%clk 0:04:50.1]} 4.
e3 {[%clk 0:04:52.4]} 4... Bg4 {[%clk 0:04:47.4]} 5. Be2 {[%clk 0:04:51.4]} 5...
Nbd7 {[%clk 0:04:44.9]} 6. Nfd2 {[%clk 0:04:49.2]} 6... Bxe2 {[%clk 0:04:43.2]}
7. Qxe2 {[%clk 0:04:48.8]} 7... e6 {[%clk 0:04:40.1]} 8. h4 {[%clk 0:04:46.3]}
8... h6 {[%clk 0:04:38.3]} 9. Nc3 {[%clk 0:04:42.1]} 9... Bb4 {[%clk 0:04:32.1]}
10. g4 {[%clk 0:04:29.2]} 10... Bxc3 {[%clk 0:04:27.2]} 11. bxc3 {[%clk
0:04:28.1]} 11... Nb6 {[%clk 0:04:15.4]} 12. g5 {[%clk 0:04:25.4]} 12... hxg5
{[%clk 0:04:12.7]} 13. Bxg5 {[%clk 0:04:22.9]} 13... Nbd7 {[%clk 0:04:06.6]} 14.
Nb3 {[%clk 0:04:21.4]} 14... Qc7 {[%clk 0:03:57.6]} 15. Bf4 {[%clk 0:04:19.2]}
15... Qc8 {[%clk 0:03:49.8]} 16. c4 {[%clk 0:04:08.5]} 16... Nh5 {[%clk
0:03:46.6]} 17. Bd6 {[%clk 0:04:05.4]} 17... Ndf6 {[%clk 0:03:36.4]} 18. c5
{[%clk 0:04:02.5]} 18... Qd7 {[%clk 0:03:33.5]} 19. Nd2 {[%clk 0:03:57.4]} 19...
b6 {[%clk 0:03:28.1]} 20. Nf3 {[%clk 0:03:55.9]} 20... bxc5 {[%clk 0:03:22]} 21.
Bxc5 {[%clk 0:03:54.7]} 21... Ne4 {[%clk 0:03:17]} 22. Bb4 {[%clk 0:03:47]}
22... a5 {[%clk 0:03:09.6]} 23. Ne5 {[%clk 0:03:45.7]} 23... Qb7 {[%clk
0:03:02.5]} 24. Bc5 {[%clk 0:03:37.2]} 24... f6 {[%clk 0:02:52.4]} 25. Ng6
{[%clk 0:03:33.9]} 25... Rh6 {[%clk 0:02:46.2]} 26. Qg4 {[%clk 0:03:30]} 26...
Nxc5 {[%clk 0:02:40.7]} 27. dxc5 {[%clk 0:03:28]} 27... f5 {[%clk 0:02:34.9]}
28. Qg5 {[%clk 0:03:16.2]} 28... Qf7 {[%clk 0:02:30.3]} 29. Ne5 {[%clk
0:03:05.4]} 29... Qc7 {[%clk 0:02:13]} 30. Rb1 {[%clk 0:02:50.1]} 30... Qxe5
{[%clk 0:02:09.1]} 31. Rb6 {[%clk 0:02:36.9]} 31... Qc3+ {[%clk 0:02:05]} 32.
Ke2 {[%clk 0:02:28.8]} 32... Qxc5 {[%clk 0:02:03.3]} 33. Rhb1 {[%clk 0:02:26.7]}
33... Nf6 {[%clk 0:01:40.2]} 34. Qxg7 {[%clk 0:02:17.4]} 34... Qc4+ {[%clk
0:01:39.1]} 35. Kf3 {[%clk 0:02:15.7]} 35... Qg4+ {[%clk 0:01:33.7]} 36. Qxg4
{[%clk 0:02:12.4]} 36... Nxg4 {[%clk 0:01:32.7]} 37. Rxc6 {[%clk 0:02:09.9]}
37... Kf7 {[%clk 0:01:28.4]} 38. Rb7+ {[%clk 0:02:06.8]} 38... Kf6 {[%clk
0:01:27.2]} 39. Rbb6 {[%clk 0:02:05.4]} 39... Re8 {[%clk 0:01:25.1]} 40. Ra6
{[%clk 0:02:01.7]} 40... Ne5+ {[%clk 0:01:23.9]} 41. Ke2 {[%clk 0:01:58.9]}
41... Nxc6 {[%clk 0:01:22.9]} 42. Rb6 {[%clk 0:01:57.9]} 42... Nb4 {[%clk
0:01:18.3]} 43. a3 {[%clk 0:01:55]} 43... Nxc2 {[%clk 0:01:17.3]} 44. a4 {[%clk
0:01:53]} 44... Nb4 {[%clk 0:01:15.8]} 45. Rb5 {[%clk 0:01:51.3]} 45... Ra8
{[%clk 0:01:13.3]} 46. Kf3 {[%clk 0:01:49.9]} 46... Rxh4 {[%clk 0:01:12.4]} 47.
Rb7 {[%clk 0:01:47.6]} 47... Nd3 {[%clk 0:01:07.1]} 48. Ke2 {[%clk 0:01:46.2]}
48... Ne5 {[%clk 0:01:05.6]} 49. f4 {[%clk 0:01:45]} 49... Nc4 {[%clk
0:01:02.9]} 50. Kd3 {[%clk 0:01:41.5]} 50... Rh3 {[%clk 0:00:59.3]} 51. Kd4
{[%clk 0:01:40.7]} 51... Rxe3 {[%clk 0:00:58.1]} 52. Kc5 {[%clk 0:01:39.6]}
52... Rc8+ {[%clk 0:00:53.4]} 53. Kb5 {[%clk 0:01:37.1]} 53... Rb3+ {[%clk
0:00:51.9]} 54. Ka6 {[%clk 0:01:36.2]} 54... Rxb7 {[%clk 0:00:50.7]} 55. Kxb7
{[%clk 0:01:34.3]} 55... Rh8 {[%clk 0:00:49.4]} 56. Kc6 {[%clk 0:01:31.4]} 56...
Ne3 {[%clk 0:00:47.5]} 57. Kb5 {[%clk 0:01:29.9]} 57... Rc8 {[%clk 0:00:45]} 58.
Kxa5 {[%clk 0:01:29]} 58... d4 {[%clk 0:00:43.6]} 59. Kb5 {[%clk 0:01:27.6]}
59... d3 {[%clk 0:00:42.8]} 60. a5 {[%clk 0:01:26.7]} 60... d2 {[%clk 0:00:42]}
61. a6 {[%clk 0:01:26]} 61... d1=Q {[%clk 0:00:40.7]} 62. Kb6 {[%clk 0:01:24.9]}
62... Qd6+ {[%clk 0:00:38.9]} 63. Kb7 {[%clk 0:01:23.6]} 63... Qc6+ {[%clk
0:00:37.7]} 64. Ka7 {[%clk 0:01:21.9]} 64... Rc7+ {[%clk 0:00:33.8]} 65. Kb8
{[%clk 0:01:21]} 65... Qxa6 {[%clk 0:00:19.2]} 66. Kxc7 {[%clk 0:01:18.3]} 66...
Nd5+ {[%clk 0:00:18.5]} 67. Kd7 {[%clk 0:01:17.4]} 67... Qb7+ {[%clk 0:00:14.6]}
68. Kd6 {[%clk 0:01:15.6]} 68... Qc7# {[%clk 0:00:12.7]} 0-1

[Event "Live Chess"]
[Site "Chess.com"]
[Date "2024.06.01"]
[Round "-"]
[White "blunderabit"]
[Black "Cruiseylee78"]
[Result "1-0"]
[WhiteElo "1821"]
[BlackElo "1662"]
[TimeControl "300"]
[EndTime "9:18:27 PDT"]
[Termination "blunderabit won by checkmate"]

1. e4 {[%clk 0:04:54.8]} 1... d6 {[%clk 0:04:56.1]} 2. d4 {[%clk 0:04:45.9]}
2... Nd7 {[%clk 0:04:54.6]} 3. Nc3 {[%clk 0:04:43]} 3... e5 {[%clk 0:04:53.2]}
4. Nf3 {[%clk 0:04:39.1]} 4... c6 {[%clk 0:04:40.4]} 5. g3 {[%clk 0:04:34.9]}
5... Ngf6 {[%clk 0:04:37.1]} 6. Bg2 {[%clk 0:04:31.9]} 6... Qc7 {[%clk
0:04:35.4]} 7. O-O {[%clk 0:04:28.2]} 7... Be7 {[%clk 0:04:34]} 8. a4 {[%clk
0:04:22.4]} 8... h6 {[%clk 0:04:32.6]} 9. Re1 {[%clk 0:04:20.3]} 9... Nf8 {[%clk
0:04:29.8]} 10. Be3 {[%clk 0:04:14.6]} 10... g5 {[%clk 0:04:18.3]} 11. a5 {[%clk
0:04:07.2]} 11... Ng6 {[%clk 0:04:13.4]} 12. Qd2 {[%clk 0:04:01.6]} 12... Bg4
{[%clk 0:04:05.1]} 13. h3 {[%clk 0:03:58.1]} 13... Bxf3 {[%clk 0:03:57.6]} 14.
Bxf3 {[%clk 0:03:56.8]} 14... Qd7 {[%clk 0:03:50.8]} 15. Bg2 {[%clk 0:03:54]}
15... Rg8 {[%clk 0:03:20.5]} 16. dxe5 {[%clk 0:03:51.5]} 16... dxe5 {[%clk
0:03:18.8]} 17. Qxd7+ {[%clk 0:03:48]} 17... Nxd7 {[%clk 0:03:17]} 18. Rad1
{[%clk 0:03:39.4]} 18... a6 {[%clk 0:03:06.1]} 19. Na4 {[%clk 0:03:33.5]} 19...
c5 {[%clk 0:02:48.8]} 20. Bf1 {[%clk 0:03:22.2]} 20... h5 {[%clk 0:02:41.7]} 21.
Bc4 {[%clk 0:03:16.4]} 21... h4 {[%clk 0:02:31.2]} 22. Bxf7+ {[%clk 0:03:13.5]}
22... Kxf7 {[%clk 0:02:25.6]} 23. Rxd7 {[%clk 0:03:11.9]} 23... hxg3 {[%clk
0:02:24.6]} 24. fxg3 {[%clk 0:03:01.7]} 24... Rgd8 {[%clk 0:02:11.4]} 25. Red1
{[%clk 0:03:00.1]} 25... Rxd7 {[%clk 0:02:09.4]} 26. Rxd7 {[%clk 0:02:59.6]}
26... Rd8 {[%clk 0:02:08.2]} 27. Rxb7 {[%clk 0:02:50.1]} 27... Rd1+ {[%clk
0:02:05.8]} 28. Kg2 {[%clk 0:02:46.9]} 28... Re1 {[%clk 0:02:04.7]} 29. Bxg5
{[%clk 0:02:33.2]} 29... Rxe4 {[%clk 0:02:01.2]} 30. Nxc5 {[%clk 0:02:24.5]}
30... Rc4 {[%clk 0:01:56.1]} 31. Nxa6 {[%clk 0:02:15.9]} 31... Rxc2+ {[%clk
0:01:54]} 32. Kf3 {[%clk 0:02:13]} 32... Ke6 {[%clk 0:01:50.9]} 33. Bxe7 {[%clk
0:02:10.7]} 33... Nxe7 {[%clk 0:01:49.7]} 34. Nb8 {[%clk 0:01:45.6]} 34... Rc5
{[%clk 0:01:43.7]} 35. b4 {[%clk 0:01:35.8]} 35... Rc3+ {[%clk 0:01:42.6]} 36.
Ke4 {[%clk 0:01:20.6]} 36... Rxg3 {[%clk 0:01:40.2]} 37. a6 {[%clk 0:01:18]}
37... Rxh3 {[%clk 0:01:34.7]} 38. a7 {[%clk 0:01:06.4]} 38... Ra3 {[%clk
0:01:33.4]} 39. b5 {[%clk 0:01:05]} 39... Nc8 {[%clk 0:01:29.6]} 40. Nc6 {[%clk
0:00:58.5]} 40... Ra4+ {[%clk 0:01:26]} 41. Ke3 {[%clk 0:00:54.7]} 41... Ra3+
{[%clk 0:01:20.7]} 42. Ke2 {[%clk 0:00:51.2]} 42... Ra2+ {[%clk 0:01:19.8]} 43.
Kd3 {[%clk 0:00:48.6]} 43... Ra3+ {[%clk 0:01:19.1]} 44. Kc2 {[%clk 0:00:46.8]}
44... Ra2+ {[%clk 0:01:18.2]} 45. Kb3 {[%clk 0:00:45.2]} 45... Ra1 {[%clk
0:01:14]} 46. Kb4 {[%clk 0:00:37]} 46... e4 {[%clk 0:01:12.2]} 47. Na5 {[%clk
0:00:34.9]} 47... Rxa5 {[%clk 0:01:03.4]} 48. Kxa5 {[%clk 0:00:29.6]} 48... Nxa7
{[%clk 0:01:02.6]} 49. Rxa7 {[%clk 0:00:28.4]} 49... e3 {[%clk 0:01:02.1]} 50.
Kb4 {[%clk 0:00:23.5]} 50... e2 {[%clk 0:01:01.4]} 51. Ra1 {[%clk 0:00:21.7]}
51... Ke5 {[%clk 0:01:00.6]} 52. Re1 {[%clk 0:00:20.2]} 52... Kf4 {[%clk
0:00:59.6]} 53. Rxe2 {[%clk 0:00:19.7]} 53... Kf3 {[%clk 0:00:59.2]} 54. Re8
{[%clk 0:00:14.4]} 54... Kf4 {[%clk 0:00:59.1]} 55. b6 {[%clk 0:00:13.3]} 55...
Kf5 {[%clk 0:00:58.5]} 56. b7 {[%clk 0:00:13]} 56... Kf4 {[%clk 0:00:58.4]} 57.
b8=Q+ {[%clk 0:00:12.5]} 57... Kf5 {[%clk 0:00:58.3]} 58. Qd6 {[%clk 0:00:11.2]}
58... Kg5 {[%clk 0:00:56.9]} 59. Re5+ {[%clk 0:00:11.1]} 59... Kg4 {[%clk
0:00:56]} 60. Qd4+ {[%clk 0:00:10.6]} 60... Kf3 {[%clk 0:00:54.1]} 61. Re3+
{[%clk 0:00:09.5]} 61... Kf2 {[%clk 0:00:53.8]} 62. Qd2+ {[%clk 0:00:09.1]}
62... Kf1 {[%clk 0:00:44.2]} 63. Re1# {[%clk 0:00:08.3]} 1-0

[Event "Live Chess"]
[Site "Chess.com"]
[Date "2024.06.01"]
[Round "-"]
[White "IanCalvert2"]
[Black "willc-h99"]
[Result "0-1"]
[WhiteElo "1629"]
[BlackElo "2667"]
[TimeControl "300"]
[EndTime "9:18:27 PDT"]
[Termination "willc-h99 won on time"]

1. b3 {[%clk 0:04:56.5]} 1... a5 {[%clk 0:04:58.2]} 2. c4 {[%clk 0:04:51.4]}
2... e5 {[%clk 0:04:53.3]} 3. Bb2 {[%clk 0:04:48.9]} 3... Nc6 {[%clk 0:04:52.6]}
4. Nc3 {[%clk 0:04:44.2]} 4... Bc5 {[%clk 0:04:47]} 5. e3 {[%clk 0:04:41.3]}
5... d6 {[%clk 0:04:45.6]} 6. Nf3 {[%clk 0:04:28.1]} 6... Nge7 {[%clk
0:04:38.4]} 7. Na4 {[%clk 0:04:13.8]} 7... Ba7 {[%clk 0:04:36.4]} 8. d4 {[%clk
0:03:51.3]} 8... Bg4 {[%clk 0:04:21.9]} 9. dxe5 {[%clk 0:03:40.1]} 9... Nxe5
{[%clk 0:04:17.3]} 10. Be2 {[%clk 0:03:36.4]} 10... N7g6 {[%clk 0:03:58.5]} 11.
Nxe5 {[%clk 0:03:24.1]} 11... Bxe2 {[%clk 0:03:54]} 12. Qxe2 {[%clk 0:03:18.1]}
12... Nxe5 {[%clk 0:03:43]} 13. Bxe5 {[%clk 0:03:09.2]} 13... dxe5 {[%clk
0:03:42.9]} 14. Rd1 {[%clk 0:03:06.2]} 14... Qe7 {[%clk 0:03:41.9]} 15. O-O
{[%clk 0:02:59.3]} 15... O-O {[%clk 0:03:40.2]} 16. Nc3 {[%clk 0:02:53.2]} 16...
c6 {[%clk 0:03:37.9]} 17. Rd2 {[%clk 0:02:39.9]} 17... Rad8 {[%clk 0:03:32.2]}
18. Rfd1 {[%clk 0:02:35.8]} 18... e4 {[%clk 0:03:28.3]} 19. Rxd8 {[%clk
0:02:19.4]} 19... Rxd8 {[%clk 0:03:26.9]} 20. Rxd8+ {[%clk 0:02:17.1]} 20...
Qxd8 {[%clk 0:03:26.8]} 21. Qd1 {[%clk 0:02:14.9]} 21... Qe7 {[%clk 0:03:20.5]}
22. h3 {[%clk 0:01:45.6]} 22... f5 {[%clk 0:03:16.3]} 23. g4 {[%clk 0:01:39.7]}
23... h6 {[%clk 0:02:48.2]} 24. gxf5 {[%clk 0:01:30.8]} 24... Qe5 {[%clk
0:02:46.7]} 25. Qh5 {[%clk 0:01:11.1]} 25... Bb8 {[%clk 0:02:30.9]} 26. Kf1
{[%clk 0:00:59.9]} 26... Bd6 {[%clk 0:02:24.5]} 27. Qg6 {[%clk 0:00:49]} 27...
Bb4 {[%clk 0:02:11.5]} 28. Ne2 {[%clk 0:00:37.7]} 28... Qe7 {[%clk 0:01:28]} 29.
Nf4 {[%clk 0:00:35.5]} 29... Bc3 {[%clk 0:01:26.6]} 30. Qe6+ {[%clk 0:00:31]}
30... Qxe6 {[%clk 0:01:16.6]} 31. Nxe6 {[%clk 0:00:27.6]} 31... b5 {[%clk
0:01:08.4]} 32. cxb5 {[%clk 0:00:24]} 32... cxb5 {[%clk 0:01:07.2]} 33. Ke2
{[%clk 0:00:19.7]} 33... Kf7 {[%clk 0:01:05.6]} 34. a4 {[%clk 0:00:16.4]} 34...
bxa4 {[%clk 0:01:03.8]} 35. bxa4 {[%clk 0:00:13.8]} 35... Kf6 {[%clk 0:01:02.5]}
36. f3 {[%clk 0:00:08.7]} 36... Kxf5 {[%clk 0:00:58]} 37. Nd4+ {[%clk
0:00:06.3]} 37... Bxd4 {[%clk 0:00:55.4]} 38. exd4 {[%clk 0:00:05.1]} 38...
exf3+ {[%clk 0:00:54.4]} 39. Kxf3 {[%clk 0:00:04]} 39... g5 {[%clk 0:00:44]} 0-1

[Event "Live Chess"]
[Site "Chess.com"]
[Date "2024.06.01"]
[Round "-"]
[White "CheckThis4"]
[Black "Delacorta"]
[Result "1-0"]
[WhiteElo "2692"]
[BlackElo "1400"]
[TimeControl "300"]
[EndTime "9:18:34 PDT"]
[Termination "CheckThis4 won by resignation"]

1. d4 {[%clk 0:04:54.7]} 1... e6 {[%clk 0:04:58.2]} 2. Nc3 {[%clk 0:04:52.4]}
2... f5 {[%clk 0:04:57]} 3. e4 {[%clk 0:04:50.7]} 3... fxe4 {[%clk 0:04:54.9]}
4. Nxe4 {[%clk 0:04:49.3]} 4... Nf6 {[%clk 0:04:54]} 5. Nxf6+ {[%clk 0:04:47.1]}
5... Qxf6 {[%clk 0:04:53]} 6. Nf3 {[%clk 0:04:46.1]} 6... d5 {[%clk 0:04:48.4]}
7. Bg5 {[%clk 0:04:44.7]} 7... Qf7 {[%clk 0:04:43.4]} 8. Ne5 {[%clk 0:04:42.3]}
8... Qg8 {[%clk 0:04:39.1]} 9. Bd3 {[%clk 0:04:33.3]} 9... Nd7 {[%clk
0:04:29.9]} 10. Ng6 {[%clk 0:04:27.2]} 10... Nf6 {[%clk 0:03:59]} 11. Nxh8
{[%clk 0:04:19.8]} 1-0

[Event "Live Chess"]
[Site "Chess.com"]
[Date "2024.06.01"]
[Round "-"]
[White "Duke_of_Bebington"]
[Black "Dhaydon19"]
[Result "0-1"]
[WhiteElo "1622"]
[BlackElo "2709"]
[TimeControl "300"]
[EndTime "9:18:36 PDT"]
[Termination "Dhaydon19 won by resignation"]

1. e4 {[%clk 0:04:56.9]} 1... c6 {[%clk 0:04:59.4]} 2. d4 {[%clk 0:04:55.4]}
2... d5 {[%clk 0:04:58.9]} 3. e5 {[%clk 0:04:54.4]} 3... c5 {[%clk 0:04:58]} 4.
Nf3 {[%clk 0:04:48.7]} 4... cxd4 {[%clk 0:04:57.1]} 5. Nxd4 {[%clk 0:04:46.3]}
5... Nc6 {[%clk 0:04:55.8]} 6. Nxc6 {[%clk 0:04:44.4]} 6... bxc6 {[%clk
0:04:54.6]} 7. Bd3 {[%clk 0:04:37.2]} 7... e6 {[%clk 0:04:41.2]} 8. O-O {[%clk
0:04:34.8]} 8... Qc7 {[%clk 0:04:40.2]} 9. Re1 {[%clk 0:04:32]} 9... Ne7 {[%clk
0:04:39.6]} 10. Bf4 {[%clk 0:04:25.2]} 10... Ng6 {[%clk 0:04:33.9]} 11. Bg3
{[%clk 0:04:23.6]} 11... Rb8 {[%clk 0:04:33.3]} 12. b3 {[%clk 0:04:20.8]} 12...
Bb4 {[%clk 0:04:30.3]} 13. Re3 {[%clk 0:04:08.1]} 13... Bc5 {[%clk 0:04:22.8]}
14. Re2 {[%clk 0:04:06.4]} 14... h5 {[%clk 0:04:20.1]} 15. h4 {[%clk 0:04:04.4]}
15... Be7 {[%clk 0:04:19]} 16. Bxg6 {[%clk 0:04:00.6]} 16... fxg6 {[%clk
0:04:18.6]} 17. Nd2 {[%clk 0:03:50.5]} 17... O-O {[%clk 0:04:15.7]} 18. Nf3
{[%clk 0:03:48.9]} 18... c5 {[%clk 0:04:13.5]} 19. Qd3 {[%clk 0:03:45.3]} 19...
Rf5 {[%clk 0:04:11.4]} 20. Rd1 {[%clk 0:03:34.1]} 20... Qc6 {[%clk 0:04:07.9]}
21. a4 {[%clk 0:03:25.3]} 21... Ba6 {[%clk 0:04:00.7]} 22. Qe3 {[%clk
0:03:23.9]} 22... Bxe2 {[%clk 0:03:57.1]} 23. Qxe2 {[%clk 0:03:23.8]} 23... d4
{[%clk 0:03:55.1]} 24. Qd2 {[%clk 0:03:10.4]} 24... Rxf3 {[%clk 0:03:52.3]} 25.
gxf3 {[%clk 0:03:09]} 25... Qxf3 {[%clk 0:03:51.9]} 26. Qd3 {[%clk 0:03:00.3]}
26... Qxd3 {[%clk 0:03:49.4]} 27. Rxd3 {[%clk 0:02:59.8]} 27... g5 {[%clk
0:03:49]} 28. hxg5 {[%clk 0:02:55.8]} 28... Bxg5 {[%clk 0:03:48.6]} 29. Kg2
{[%clk 0:02:49.1]} 29... Be7 {[%clk 0:03:47.2]} 30. Kf3 {[%clk 0:02:45.8]} 30...
g5 {[%clk 0:03:45]} 31. Bh2 {[%clk 0:02:36.7]} 31... Kf7 {[%clk 0:03:38.8]} 32.
Kg3 {[%clk 0:02:30]} 32... Kg6 {[%clk 0:03:38]} 33. Rf3 {[%clk 0:02:27.5]} 33...
Rf8 {[%clk 0:03:34.7]} 34. Rxf8 {[%clk 0:02:02]} 34... Bxf8 {[%clk 0:03:32.7]}
35. f3 {[%clk 0:01:59.1]} 35... Kf5 {[%clk 0:03:31.6]} 36. Kf2 {[%clk
0:01:55.8]} 36... Bg7 {[%clk 0:03:31.2]} 0-1

[Event "Live Chess"]
[Site "Chess.com"]
[Date "2024.06.01"]
[Round "-"]
[White "StoreySniper"]
[Black "Tatarinov_Maxim"]
[Result "1-0"]
[WhiteElo "2528"]
[BlackElo "2274"]
[TimeControl "300"]
[EndTime "9:19:05 PDT"]
[Termination "StoreySniper won by resignation"]

1. e4 {[%clk 0:04:56.4]} 1... c5 {[%clk 0:04:58.2]} 2. Nf3 {[%clk 0:04:55.6]}
2... Nc6 {[%clk 0:04:57.7]} 3. Bb5 {[%clk 0:04:53.9]} 3... g6 {[%clk 0:04:56.3]}
4. Bxc6 {[%clk 0:04:53.2]} 4... bxc6 {[%clk 0:04:55.2]} 5. d3 {[%clk 0:04:52.9]}
5... Bg7 {[%clk 0:04:54.5]} 6. Nc3 {[%clk 0:04:52.4]} 6... e5 {[%clk 0:04:53.4]}
7. Be3 {[%clk 0:04:51.8]} 7... d6 {[%clk 0:04:51.2]} 8. h3 {[%clk 0:04:50.3]}
8... Ne7 {[%clk 0:04:50.1]} 9. Qd2 {[%clk 0:04:48.9]} 9... Rb8 {[%clk
0:04:46.8]} 10. b3 {[%clk 0:04:47.7]} 10... O-O {[%clk 0:04:44.5]} 11. O-O-O
{[%clk 0:04:44.2]} 11... Qa5 {[%clk 0:04:37.6]} 12. Kb2 {[%clk 0:04:39.4]} 12...
Be6 {[%clk 0:04:34.1]} 13. h4 {[%clk 0:04:28]} 13... h5 {[%clk 0:04:18.5]} 14.
Ng5 {[%clk 0:04:24.8]} 14... Bd7 {[%clk 0:04:14.5]} 15. f3 {[%clk 0:04:16.4]}
15... Rb7 {[%clk 0:04:04]} 16. g4 {[%clk 0:04:10.7]} 16... hxg4 {[%clk
0:04:01.6]} 17. h5 {[%clk 0:04:09.7]} 17... d5 {[%clk 0:03:51.9]} 18. Nxd5
{[%clk 0:04:05.2]} 18... Qd8 {[%clk 0:03:47.5]} 19. Nxe7+ {[%clk 0:04:00.6]}
19... Qxe7 {[%clk 0:03:47.4]} 20. fxg4 {[%clk 0:03:42.8]} 20... Bxg4 {[%clk
0:03:43.3]} 21. Rdg1 {[%clk 0:03:40.9]} 21... Bxh5 {[%clk 0:03:39.9]} 22. Qf2
{[%clk 0:03:13.7]} 22... Qf6 {[%clk 0:03:17.3]} 23. Qxf6 {[%clk 0:02:41.8]}
23... Bxf6 {[%clk 0:03:17.2]} 24. Rxh5 {[%clk 0:02:40.9]} 24... gxh5 {[%clk
0:03:13.1]} 25. Ne6+ {[%clk 0:02:40]} 25... Kh7 {[%clk 0:03:11]} 26. Nxf8+
{[%clk 0:02:38.3]} 1-0